{"text_format":"1","workbook":"xlsx","n_sheets":7,"sheets":["SolCotizacion","ResumenCotizacion","CSV","Cuadro","Listas","Catalogo","csv-Solicitud"],"not_rendered":{"charts":0,"images":4,"macros":1,"external_links":1,"defined_names":5,"comments":0,"pivot_tables":0},"unopened":[],"bounds":{"document_bytes":16777216,"sheet_cells":100000,"rows_first":2000,"rows_last":500,"rows_between":2000,"halvings":0,"cell_chars":16384,"cell_head_chars":4096},"cells_cut":0,"cells_raw":0,"read":"whole","date_system":"1900"}

{"sheet":"SolCotizacion","index":0,"n_rows":38,"n_cols":18,"rows_kept":38,"cut":false,"hidden":false,"merged":[[13,9,13,11],[15,1,15,2],[15,3,15,5],[15,7,15,8],[15,9,15,11],[13,1,13,2],[13,3,13,5],[13,7,13,8],[11,3,11,5],[9,3,9,5],[11,1,11,2],[11,7,11,8],[11,9,11,11],[0,1,0,11],[1,1,1,11],[9,1,9,2],[9,7,9,8],[9,9,9,11],[7,1,7,2],[7,7,7,8],[7,9,7,11],[8,9,8,11],[3,1,3,11],[5,1,5,2],[5,7,5,8],[5,9,5,11],[5,3,5,5],[7,3,7,5],[30,1,30,7],[19,5,19,9],[17,1,17,11],[34,2,34,5],[32,1,32,6],[33,2,33,5],[27,2,27,3],[26,2,26,3],[19,1,19,2],[25,1,25,7],[21,1,21,2],[21,5,21,9]]}
[null,"SOLICITUD DE COTIZACIÓN",null,null,null,null,null,null,null,null,null,null,0,0]
[null,"Instrumento de Agregación de Demanda para contratar\nMedicamentos de Control Especial II\nCCE-250-IAD-2020",null,null,null,null,null,null,null,null,null,null,0,0]
[null,"Versión 33","2024-06-03",null,null,null,null,null,null,null,null,null,0,0]
[null,"Información de la Entidad Compradora",null,null,null,null,null,null,null,null,null,null,null,0]
[]
[null,"Nombre de la Entidad",null,"",null,null,null,"Lugar y Fecha",null,""]
[null,":"]
[null,"CC o NIT",null,"",null,null,null,"Departamento",null,""]
[]
[null,"Responsable",null,"",null,null,null,"Cargo",null,""]
[]
[null,"Dirección",null,"",null,null,null,"Teléfono",null,""]
[]
[null,"Correo Electronico",null,"",null,null,null,"Resolución de inscripción No.",null,""]
[]
[null,"Fecha de expedición",null,"",null,null,null,"Ciudad",null,""]
[]
[null,"Solicitud de Cotización"]
[]
[null,"Establecimiento",null,"","Proveedor",{"$f":"+IFERROR(VLOOKUP($D$20,Listas!$A:$B,2,0),\"\")","v":""}]
[]
[null,"Requiere entrega parciales",null,"","Detalle de entrega"]
[]
[null,1]
[]
[null,"Resumen de Orden"]
[null,"Medicamento","Presentación",null,"Cantidad Solicitada","Lote","Fecha Vencimiento","Cantidad Aprobada FNE"]
[null,null,{"$f":"VLOOKUP(B28,Catalogo!B:C,2,0)","v":{"$error":"#N/A"}}]
[null,"1. Si requiere agregue o elimine filas"]
[]
[null,"Gravámenes adicionales*"]
[]
[null,"Gravámenes adicionales (estampillas)"]
[null,"No","Descripción",null,null,null,"Porcentaje"]
[null,1,null,null,null,null,null,"","","","","","","","","","",""]
[null,null,null,null,null,"Total porcentaje:",{"$f":"ROUND(SUM(G35:G35),4)","v":0}]
[null,null,null,"Filas a agregar o eliminar Gravámenes:"]
[null,null,null,1]

{"sheet":"ResumenCotizacion","index":1,"n_rows":18,"n_cols":14,"rows_kept":18,"cut":false,"hidden":false,"merged":[[8,9,8,11],[7,1,7,2],[15,1,15,2],[15,3,15,5],[15,7,15,8],[15,9,15,11],[11,7,11,8],[11,9,11,11],[13,1,13,2],[13,3,13,5],[13,9,13,11],[7,3,7,5],[13,7,13,8],[0,1,0,11],[1,1,1,11],[17,1,17,11],[11,1,11,2],[11,3,11,5],[9,1,9,2],[9,3,9,5],[9,7,9,8],[9,9,9,11],[3,1,3,11],[5,1,5,2],[5,3,5,5],[5,7,5,8],[5,9,5,11],[7,7,7,8],[7,9,7,11]]}
[null,"RESUMEN COTIZACIÓN",null,null,null,null,null,null,null,null,null,null,0,0]
[null,"Instrumento de Agregación de Demanda para contratar\nMedicamentos de Control Especial II\nCCE-250-IAD-2020",null,null,null,null,null,null,null,null,null,null,0,0]
[null,{"$f":"SolCotizacion!B3","v":"Versión 33"},{"$f":"SolCotizacion!C3","v":"2024-06-03"},null,null,null,null,null,null,null,null,null,0,0]
[null,"Información de la Entidad Compradora",null,null,null,null,null,null,null,null,null,null,null,0]
[]
[null,"Nombre de la Entidad",null,null,null,null,null,"Lugar y Fecha",null,""]
[null,":"]
[null,"CC o NIT",null,null,null,null,null,"Departamento",null,""]
[]
[null,"Responsable",null,"",null,null,null,"Cargo",null,""]
[]
[null,"Dirección",null,"",null,null,null,"Teléfono",null,""]
[]
[null,"Correo Electronico",null,"",null,null,null,"Resolución de inscripción No.",null,""]
[]
[null,"Fecha de expedición",null,"",null,null,null,"Ciudad",null,""]
[]
[null,"Solicitud de Cotización"]

{"sheet":"CSV","index":2,"n_rows":2,"n_cols":7,"rows_kept":2,"cut":false,"hidden":true,"merged":[]}
["Tipo","Cantidad","Código de unidad de medida*","Precio base","Divisa","Descripción","Mercancía"]
["item",1,"Cj5am",13099,"COP","fne01--Morfina HCL 10 mg ampolla x 5 mL Caja 5 ampollas"]

{"sheet":"Cuadro","index":3,"n_rows":5,"n_cols":4,"rows_kept":5,"cut":false,"hidden":true,"merged":[[1,1,1,3]]}
[]
[null,"Valores"]
[null,"Valor Unitario","Valor + Gravamen","Precio Total"]
[]
[null,null,"Valor total:",{"$f":"SUM(D4:D4)","v":0}]

{"sheet":"Listas","index":4,"n_rows":30,"n_cols":3,"rows_kept":30,"cut":false,"hidden":true,"merged":[]}
["Establecimiento","Proveedor","Medicamento"]
["FRE","Unidad Administrativa Especial Fondo Nacional de Estupefacientes","Fenobarbital 0,4% Sol Oral"]
["HOSPITAL","Unidad Administrativa Especial Fondo Nacional de Estupefacientes","Fenobarbital 10 mg"]
[null,null,"Fenobarbital 100 mg"]
[null,null,"Fenobarbital 200 mg"]
[null,null,"Fenobarbital 40 mg"]
[null,null,"Fenobarbital 50 mg"]
[null,null,"Hidromorfona HCL 2 mg"]
[null,null,"Hidromorfona HCL 2,5 mg"]
[null,null,"Meperidina HCL 100 mg"]
[null,null,"Metadona Clorhidrato 10 Mg/Ml Solución Oral"]
[null,null,"Metadona HCL 10 mg Caja 30 tabletas"]
[null,null,"Metadona HCL 10 mg Frasco 20 tabletas"]
[null,null,"Metadona HCL 40 mg Caja 30 tabletas"]
[null,null,"Metadona HCL 40 mg Frasco 20 tabletas"]
[null,null,"Metilfenidato 18 mg"]
[null,null,"Metilfenidato 36 mg"]
[null,null,"Metilfenidato HCL 10 mg"]
[null,null,"Morfina HCL 10 mg"]
[null,null,"Morfina HCL 10 mg ampolla x 5 mL"]
[null,null,"Morfina Solución Oral"]
[null,null,"Primidona 250 mg Caja 30 tabletas"]
[null,null,"Primidona 250 mg Caja 50 tabletas"]
[]
[]
[]
[]
[null,null,"Morfina Solución Vial"]
[null,null,"Metilfenidato LA 30 mg"]
[null,null,"Hidrato de Cloral 10% sol oral"]

{"sheet":"Catalogo","index":5,"n_rows":25,"n_cols":6,"rows_kept":25,"cut":false,"hidden":true,"merged":[]}
["Llave","Medicamento","Presentacion","FRE","HOSPITAL","Unidad TVEC"]
[{"$f":"B2&C2","v":"Fenobarbital 0,4% Sol OralFrasco"},"Fenobarbital 0,4% Sol Oral","Frasco",41851,46873,"Frasco"]
[{"$f":"B3&C3","v":"Fenobarbital 10 mgCaja 30 tabletas"},"Fenobarbital 10 mg","Caja 30 tabletas",15657,17536,"Cj30ta"]
["Fenobarbital 50 mgCaja 30 tabletas","Fenobarbital 50 mg","Caja 30 tabletas",19411,21741,"Cj30ta"]
["Fenobarbital 100 mgCaja 30 tabletas","Fenobarbital 100 mg","Caja 30 tabletas",9900,11088,"Cj30ta"]
["Fenobarbital 40 mgCaja 10 ampollas","Fenobarbital 40 mg","Caja 10 ampollas",50600,56672,"Cj10am"]
["Fenobarbital 200 mgCaja 10 ampollas","Fenobarbital 200 mg","Caja 10 ampollas",81949,91782,"Cj10am"]
["Hidromorfona HCL 2 mgCaja 10 ampollas","Hidromorfona HCL 2 mg","Caja 10 ampollas",20996,23516,"Cj10am"]
["Hidromorfona HCL 2,5 mgCaja 20 tabletas","Hidromorfona HCL 2,5 mg","Caja 20 tabletas",10537,11801,"Cj20ta"]
["Meperidina HCL 100 mgCaja 10 ampollas","Meperidina HCL 100 mg","Caja 10 ampollas",38565,43193,"Cj10am"]
["Morfina HCL 10 mgCaja 10 ampollas","Morfina HCL 10 mg","Caja 10 ampollas",21202,23747,"Cj10am"]
["Morfina Solución OralFrasco","Morfina Solución Oral","Frasco",29495,33034,"Frasco"]
[{"$f":"B13&C13","v":"Primidona 250 mg Caja 50 tabletasCaja 50 tabletas"},"Primidona 250 mg Caja 50 tabletas","Caja 50 tabletas",51732,57940,"Cj50ta"]
["Metadona HCL 10 mg Frasco 20 tabletasFco 20 tabletas","Metadona HCL 10 mg Frasco 20 tabletas","Fco 20 tabletas",70663,79142,"Fco20t"]
["Metadona HCL 40 mg Frasco 20 tabletasFco 20 tabletas","Metadona HCL 40 mg Frasco 20 tabletas","Fco 20 tabletas",154624,173179,"Fco20t"]
["Metilfenidato HCL 10 mgCaja 30 tabletas","Metilfenidato HCL 10 mg","Caja 30 tabletas",18214,19853,"Cj30ta"]
["Metilfenidato 18 mgFco 30 tabletas","Metilfenidato 18 mg","Fco 30 tabletas",66794,68363,"Fco30t"]
["Metilfenidato 36 mgFco 30 tabletas","Metilfenidato 36 mg","Fco 30 tabletas",133589,136725,"Fco30t"]
[{"$f":"B19&C19","v":"Metadona HCL 10 mg Caja 30 tabletasCaja 30 tabletas"},"Metadona HCL 10 mg Caja 30 tabletas","Caja 30 tabletas",31915,35744,"Cj30ta"]
["Metadona HCL 40 mg Caja 30 tabletasCaja 30 tabletas","Metadona HCL 40 mg Caja 30 tabletas","Caja 30 tabletas",63157,70736,"Cj30ta"]
["Morfina HCL 10 mg ampolla x 5 mLCaja 5 ampollas","Morfina HCL 10 mg ampolla x 5 mL","Caja 5 ampollas",13099,14711,"Cj5am"]
[{"$f":"B22&C22","v":"Primidona 250 mg Caja 30 tabletasCaja 30 tabletas"},"Primidona 250 mg Caja 30 tabletas","Caja 30 tabletas",52604,58917,"Cj30ta"]
[{"$f":"B23&C23","v":"Metadona Clorhidrato 10 Mg/Ml Solución OralFrasco x 120 Ml"},"Metadona Clorhidrato 10 Mg/Ml Solución Oral","Frasco x 120 Ml",43853,49114,"Frasco"]
[{"$f":"B24&C24","v":"Morfina Solución VialFrasco"},"Morfina Solución Vial","Frasco",0,0,"Frasco"]
[{"$f":"B25&C25","v":"Metilfenidato LA 30 mgFco 30 capsulas"},"Metilfenidato LA 30 mg","Fco 30 capsulas",0,0,"Fco30c"]

{"sheet":"csv-Solicitud","index":6,"n_rows":23,"n_cols":46,"rows_kept":23,"cut":false,"hidden":true,"merged":[]}
["Solicitud","Registrar identificador","Â¿Enviar para aprobaciÃ³n?","LÃ­mite de recepciÃ³n de la sol.","JustificaciÃ³n","Nombre del departamento","Nota del comprador","Solicitado por (correo electrÃ³nico)","Solicitado por (inicio de sesiÃ³n)","Nombre de tarjeta de compras","Enviar a nombre","Enviar a id.","Enviar a la atenciÃ³n","Enviar a calle 1","Enviar a calle 2","Enviar a ciudad","Enviar a estado","Enviar a cÃ³digo postal","Enviar a cÃ³digo de paÃ­s","Enviar a nombre de paÃ­s","Enviar a cÃ³digo de ubicaciÃ³n","N.I.T.","AgregaciÃ³n","Necesidad del bien o servicio*","Modalidad de selecciÃ³n","DestinaciÃ³n del gasto*","Origen de los    recursos*","Asociado al Acuerdo de Paz","Supervisor de la Orden de Compra*","Correo electrÃ³nico del supervisor*","TelÃ©fono del      supervisor*","Vencimiento de la Orden de Compra*","Especificaciones adicionales de entrega","GravÃ¡menes      adicionales","IntegraciÃ³n con SIIF","CÃ³digo Unidad / Subunidad Ejecutora","Acepto tÃ©rminos y condiciones"]
["LÃ­nea de solicitudes","Registrar identificador","NÃºmero de lÃ­nea","NÃºmero de artÃ­culo del catÃ¡logo","Nombre de artÃ­culo del catÃ¡logo","Sin descripciÃ³n de artÃ­culo del catÃ¡logo","NÃºmero de parte del proveedor","Cantidad","Precio","LÃ­mite de recepciÃ³n de la sol.","Nombre del proveedor","NÃºmero del proveedor","CÃ³digo de sitio del proveedor","CÃ³digo de unidad de medida","Nombre de mercancÃ­a","Nombre del contrato","CÃ³digo de divisa","Etiquetas de activos","Nombre del Cuadro de cuentas","Nombre de la cuenta","CÃ³digo de cuentas","Segmento 1 de la cuenta","Segmento 2 de la cuenta","Segmento 3 de la cuenta","Segmento 4 de la cuenta","Segmento 5 de la cuenta","Segmento 6 de la cuenta","Segmento 7 de la cuenta","Segmento 8 de la cuenta","Segmento 9 de la cuenta","Segmento 10 de la cuenta","Segmento 11 de la cuenta","Segmento 12 de la cuenta","Segmento 13 de la cuenta","Segmento 14 de la cuenta","Segmento 15 de la cuenta","Segmento 16 de la cuenta","Segmento 17 de la cuenta","Segmento 18 de la cuenta","Segmento 19 de la cuenta","Segmento 20 de la cuenta","Importe de asignaciÃ³n de cuenta","Porcentaje de asignaciÃ³n de cuenta","CÃ³digo del plazo de pago","CÃ³digo del plazo de envÃ­o","Nombre de perÃ­odo de presupuesto"]
["AsignaciÃ³n de cuentas","Registrar identificador","NÃºmero de lÃ­nea","Monto","Porcentaje","Nombre de perÃ­odo de presupuesto","Nombre de la cuenta","CÃ³digo de cuentas","Segmento 1 de la cuenta","Segmento 2 de la cuenta","Segmento 3 de la cuenta","Segmento 4 de la cuenta","Segmento 5 de la cuenta","Segmento 6 de la cuenta","Segmento 7 de la cuenta","Segmento 8 de la cuenta","Segmento 9 de la cuenta","Segmento 10 de la cuenta","Segmento 11 de la cuenta","Segmento 12 de la cuenta","Segmento 13 de la cuenta","Segmento 14 de la cuenta","Segmento 15 de la cuenta","Segmento 16 de la cuenta","Segmento 17 de la cuenta","Segmento 18 de la cuenta","Segmento 19 de la cuenta","Segmento 20 de la cuenta"]
["Solicitud",1,"no",null,"\"\"","Digite nombre de la entidad",null,"crear.entidad@colombiacompra.gov.co","\"digite.usuario\"",null,"Direccion",4394,null,null,null,null,null,null,null,null,null,null,"IAD para la adquisiciÃ³n de Medicamentos de Control Especial de Monopolio del Estado","Necesidad","SelecciÃ³n Abreviada AMP","Funcionamiento","Recursos propios","No","Digite supervisor","Digite correo",1,"2020-01-01",null,"GravÃ¡menes",null,"Yes"]
["LÃ­nea de solicitudes",1,1,null,"\"fne01-Fenobarbital 0,4% Sol Oral\"",null,null,25,"\"10990,32\"",null,"Unidad Administrativa Especial Fondo Nacional de Estupefacientes",null,null,"Frasco","Medicamentos de Control Especial de Monopolio del Estado",null,"COP"]
["LÃ­nea de solicitudes",1,2,null,"\"fne01-Fenobarbital 10 mg\"",null,null,25,"\"14992,47\"",null,"Unidad Administrativa Especial Fondo Nacional de Estupefacientes",null,null,"Cj30ta","Medicamentos de Control Especial de Monopolio del Estado",null,"COP"]
["LÃ­nea de solicitudes",1,3,null,"\"fne01-Fenobarbital 50 mg\"",null,null,25,"\"12161,29\"",null,"Unidad Administrativa Especial Fondo Nacional de Estupefacientes",null,null,"Cj30ta","Medicamentos de Control Especial de Monopolio del Estado",null,"COP"]
["LÃ­nea de solicitudes",1,4,null,"\"fne01-Fenobarbital 100 mg\"",null,null,25,"\"3709,68\"",null,"Unidad Administrativa Especial Fondo Nacional de Estupefacientes",null,null,"Cj30ta","Medicamentos de Control Especial de Monopolio del Estado",null,"COP"]
["LÃ­nea de solicitudes",1,5,null,"\"fne01-Fenobarbital 40 mg\"",null,null,25,"\"32115,05\"",null,"Unidad Administrativa Especial Fondo Nacional de Estupefacientes",null,null,"Cj10am","Medicamentos de Control Especial de Monopolio del Estado",null,"COP"]
["LÃ­nea de solicitudes",1,6,null,"\"fne01-Fenobarbital 200 mg\"",null,null,25,"\"50630,11\"",null,"Unidad Administrativa Especial Fondo Nacional de Estupefacientes",null,null,"Cj10am","Medicamentos de Control Especial de Monopolio del Estado",null,"COP"]
["LÃ­nea de solicitudes",1,7,null,"\"fne01-Hidromorfona HCL 2 mg\"",null,null,25,"\"12718,28\"",null,"Unidad Administrativa Especial Fondo Nacional de Estupefacientes",null,null,"Cj10am","Medicamentos de Control Especial de Monopolio del Estado",null,"COP"]
["LÃ­nea de solicitudes",1,8,null,"\"fne01-Hidromorfona HCL 2,5 mg\"",null,null,25,"\"9562,37\"",null,"Unidad Administrativa Especial Fondo Nacional de Estupefacientes",null,null,"Cj20ta","Medicamentos de Control Especial de Monopolio del Estado",null,"COP"]
["LÃ­nea de solicitudes",1,9,null,"\"fne01-Meperidina HCL 100 mg\"",null,null,25,"\"21038,71\"",null,"Unidad Administrativa Especial Fondo Nacional de Estupefacientes",null,null,"Cj10am","Medicamentos de Control Especial de Monopolio del Estado",null,"COP"]
["LÃ­nea de solicitudes",1,10,null,"\"fne01-Morfina HCL 10 mg\"",null,null,25,"\"14321,51\"",null,"Unidad Administrativa Especial Fondo Nacional de Estupefacientes",null,null,"Cj10am","Medicamentos de Control Especial de Monopolio del Estado",null,"COP"]
["LÃ­nea de solicitudes",1,11,null,"\"fne01-Morfina SoluciÃ³n Oral\"",null,null,25,"\"23047,31\"",null,"Unidad Administrativa Especial Fondo Nacional de Estupefacientes",null,null,"Frasco","Medicamentos de Control Especial de Monopolio del Estado",null,"COP"]
["LÃ­nea de solicitudes",1,12,null,"\"fne01-Morfina SoluciÃ³n Vial\"",null,null,25,"\"17002,15\"",null,"Unidad Administrativa Especial Fondo Nacional de Estupefacientes",null,null,"Frasco","Medicamentos de Control Especial de Monopolio del Estado",null,"COP"]
["LÃ­nea de solicitudes",1,13,null,"\"fne01-Primidona 250 mg\"",null,null,25,"\"55290,32\"",null,"Unidad Administrativa Especial Fondo Nacional de Estupefacientes",null,null,"Cj50ta","Medicamentos de Control Especial de Monopolio del Estado",null,"COP"]
["LÃ­nea de solicitudes",1,14,null,"\"fne01-Metadona HCL 10 mg\"",null,null,25,"\"61011,83\"",null,"Unidad Administrativa Especial Fondo Nacional de Estupefacientes",null,null,"Fco20t","Medicamentos de Control Especial de Monopolio del Estado",null,"COP"]
["LÃ­nea de solicitudes",1,15,null,"\"fne01-Metadona HCL 40 mg\"",null,null,25,"\"133722,58\"",null,"Unidad Administrativa Especial Fondo Nacional de Estupefacientes",null,null,"Fco20t","Medicamentos de Control Especial de Monopolio del Estado",null,"COP"]
["LÃ­nea de solicitudes",1,16,null,"\"fne01-Metilfenidato HCL 10 mg\"",null,null,25,"\"22866,67\"",null,"Unidad Administrativa Especial Fondo Nacional de Estupefacientes",null,null,"Cj30ta","Medicamentos de Control Especial de Monopolio del Estado",null,"COP"]
["LÃ­nea de solicitudes",1,17,null,"\"fne01-Metilfenidato LA 30 mg\"",null,null,25,"\"398741,94\"",null,"Unidad Administrativa Especial Fondo Nacional de Estupefacientes",null,null,"Fco30c","Medicamentos de Control Especial de Monopolio del Estado",null,"COP"]
["LÃ­nea de solicitudes",1,18,null,"\"fne01-Metilfenidato 18 mg\"",null,null,25,"\"369107,53\"",null,"Unidad Administrativa Especial Fondo Nacional de Estupefacientes",null,null,"Fco30t","Medicamentos de Control Especial de Monopolio del Estado",null,"COP"]
["LÃ­nea de solicitudes",1,19,null,"\"fne01-Metilfenidato 36 mg\"",null,null,25,"\"423893,55\"",null,"Unidad Administrativa Especial Fondo Nacional de Estupefacientes",null,null,"Fco30t","Medicamentos de Control Especial de Monopolio del Estado",null,"COP"]